fUSD/lending_fUSD_20250610
["ID","MTS","AMOUNT","RATE_DAILY","PERIOD"]
[365282834,1749576643262,-151.0,0.00019068,2]
[365282836,1749576643272,-151.0,0.00019068,2]
[365282838,1749576643281,-1455.96,0.00019068,2]
[365282840,1749576643291,-151.0,0.00019068,2]
[365282843,1749576643300,-490.0,0.00019068,2]
[365282844,1749576643310,-151.0,0.00019068,2]
[365282847,1749576643319,-151.0,0.00019068,2]
[365282848,1749576643329,-151.0,0.00019068,2]
[365282850,1749576643338,-560.62,0.00019068,2]
[365282853,1749576643348,-14530.23,0.00019068,2]
[365282854,1749576643358,-151.0,0.00019068,2]
[365282857,1749576643367,-490.0,0.00019068,2]
[365282858,1749576643376,-151.0,0.00019068,2]
[365282860,1749576643386,-151.0,0.00019068,2]
[365282862,1749576643395,-1395.72,0.00019068,2]
[365282864,1749576643403,-151.0,0.00019068,2]
[365282866,1749576643413,-1417.27,0.00019068,2]
[365282868,1749576643421,-438.9912731,0.00019068,2]
[365282870,1749576643430,-151.0,0.00019068,2]
[365282872,1749576643439,-490.0,0.00019068,2]
[365282874,1749576643449,-218.255113,0.00019068,2]
[365282876,1749576643458,-218.255113,0.00019068,2]
[365282878,1749576643469,-151.0,0.00019068,2]
[365282880,1749576643479,-209.0523,0.00019068,2]
[365282882,1749576643489,-778.47,0.00019068,2]
[365282884,1749576643498,-721.33,0.00019068,2]
[365282886,1749576643507,-160.76969618,0.0001907,2]
[365282888,1749576643516,-1884.693,0.00019072,2]
[365282890,1749576643528,-552.66740119,0.00019072,2]
[365282892,1749576643538,-500.0,0.00019073,2]
[365282894,1749576643548,-535.42197376,0.00019073,2]
[365282896,1749576643559,-180.34460197,0.00019078,2]
[365282898,1749576643569,-156.08806021,0.00019096,2]
[365282900,1749576643578,-1108.528863,0.0001911,2]
[365282902,1749576643587,-200.0,0.00019118,2]
[365282904,1749576643596,-234.0,0.00019123,2]
[365282906,1749576643606,-200.0,0.00019141,2]
[365282908,1749576643614,-500.0,0.00019173,2]
[365282910,1749576643624,-200.0,0.00019174,2]
[365282912,1749576643633,-552.66740119,0.00019176,2]
[365282914,1749576643642,-442.60614661,0.00019176,2]
[365282916,1749576643652,-500.0,0.00019177,2]
[365282918,1749576643661,-151.0,0.00019177,2]
[365282920,1749576643671,-151.0,0.00019177,2]
[365282922,1749576643680,-151.0,0.00019177,2]
[365282924,1749576643690,-151.0,0.00019177,2]
[365282926,1749576643699,-151.0,0.00019177,2]
[365282928,1749576643709,-151.0,0.00019177,2]
[365282930,1749576643718,-151.0,0.00019177,2]
[365282932,1749576643727,-151.0,0.00019177,2]
[365282934,1749576643736,-151.0,0.00019177,2]
[365282936,1749576643745,-151.0,0.00019177,2]
[365282938,1749576643755,-151.0,0.00019177,2]
[365282940,1749576643764,-197.567333,0.00019177,2]
[365282942,1749576643773,-151.0,0.00019177,2]
[365282944,1749576643783,-151.0,0.00019177,2]
[365282946,1749576643792,-151.0,0.00019177,2]
[365282948,1749576643802,-277.413691,0.00019177,2]
[365282950,1749576643811,-277.413691,0.00019177,2]
[365282951,1749576643821,-151.0,0.00019177,2]
[365282953,1749576643830,-151.0,0.00019177,2]
[365282955,1749576643840,-151.0,0.00019177,2]
[365282957,1749576643849,-151.0,0.00019177,2]
[365282960,1749576643859,-151.0,0.00019177,2]
[365282962,1749576643869,-151.0,0.00019177,2]
[365282964,1749576643879,-676.07,0.00019177,2]
[365282965,1749576643888,-676.07,0.00019177,2]
[365282967,1749576643898,-676.07,0.00019177,2]
[365282969,1749576643907,-676.07,0.00019177,2]
[365282971,1749576643916,-676.07,0.00019177,2]
[365282973,1749576643926,-676.07,0.00019177,2]
[365282975,1749576643934,-676.07,0.00019177,2]
[365282977,1749576643944,-676.07,0.00019177,2]
[365282979,1749576643954,-943.214317,0.00019177,2]
[365282981,1749576643967,-676.07,0.00019177,2]
[365282983,1749576643979,-676.07,0.00019177,2]
[365282985,1749576643990,-676.07,0.00019177,2]
[365282987,1749576644001,-151.0,0.00019177,2]
[365282989,1749576644013,-151.0,0.00019177,2]
[365282991,1749576644025,-943.214317,0.00019177,2]
[365282994,1749576644040,-151.0,0.00019177,2]
[365282996,1749576644054,-151.0,0.00019177,2]
[365282998,1749576644078,-151.0,0.00019177,2]
[365283000,1749576644091,-151.0,0.00019177,2]
[365283001,1749576644104,-183.810526,0.00019177,2]
[365283004,1749576644116,-25788.05874795,0.00019177,2]
[365283030,1749576644388,-490.0,0.0001726,2]
[365283032,1749576644397,-424.04186513,0.00017424,2]
[365283035,1749576644412,-65.95813487,0.00017424,2]
[365283037,1749576644421,-490.0,0.00017589,2]
[365283039,1749576644431,-490.0,0.00017753,2]
[365283041,1749576644440,-490.0,0.00017917,2]
[365283043,1749576644450,-490.0,0.00018082,2]
[365283045,1749576644459,-312.64186513,0.00018246,2]
[365283216,1749576646165,-490.0,0.00016438,2]
[365283218,1749576646174,-205.50310249,0.0001693,2]
[365283219,1749576646185,-162.78299342,0.0001693,2]
[365283221,1749576646202,-153.59368657,0.0001693,2]
[365283223,1749576646217,-500.0,0.00017808,2]
[365283225,1749576646227,-486.39920865,0.00017808,2]
[365283227,1749576646237,-246.88813487,0.00018246,2]
[365283229,1749576646247,-454.85,0.00018356,2]
[365283231,1749576646257,-151.0,0.00019177,2]
[365283233,1749576646266,-107007.4586648,0.00019177,2]
[365283254,1749576646462,-883.0,0.00018526,2]
[365283255,1749576646474,-1242.4,0.00019177,2]
[365283256,1749576646489,-708.73027673,0.00019177,2]
[365283274,1749576721423,-1483.64442628,0.00038595,120]
[365283275,1749576721450,-370.47732,0.00038595,120]
[365283276,1749576721475,-1802.18,0.00038595,60]
[365283277,1749576721501,-1000.0,0.00038595,120]
[365283278,1749576721531,-539.4,0.00038595,120]
[365283279,1749576721559,-172.26421785,0.00038595,120]
[365283280,1749576721588,-172.26421785,0.00038595,120]
[365283281,1749576721615,-32324.41,0.00038595,60]
[365283282,1749576721641,-9080.09403911,0.00038595,120]
[365283283,1749576721668,-328112.83870667,0.00038595,120]
[365283284,1749576721696,-3302.5852402,0.00038595,120]
[365283285,1749576721723,-528.0,0.00038595,90]
[365283286,1749576721749,-577.28798304,0.00038595,120]
[365283287,1749576721776,-344.0,0.00038595,120]
[365283288,1749576721804,-10792.0,0.00038595,60]
[365283289,1749576721832,-3294.14720086,0.00038595,120]
[365283290,1749576721861,-74496.80476338,0.00038595,60]
[365283291,1749576721889,-74496.80476338,0.00038595,60]
[365283292,1749576721916,-74496.80476338,0.00038595,60]
[365283293,1749576721945,-16781.65194472,0.00038595,60]
[365283294,1749576721971,-16781.65194472,0.00038595,60]
[365283295,1749576722000,-16781.65194472,0.00038595,60]
[365283296,1749576722027,-1098.07960265,0.00038595,120]
[365283297,1749576722056,-200.0,0.00038595,60]
[365283298,1749576722083,-200.0,0.00038595,60]
[365283299,1749576722123,-2264.51499069,0.00038595,60]
[365283300,1749576722152,-2264.51499069,0.00038595,60]
[365283301,1749576722182,-2264.51499069,0.00038595,60]
[365283302,1749576722210,-5279.78183055,0.00038595,60]
[365283303,1749576722237,-5279.78183055,0.00038595,60]
[365283304,1749576722265,-5279.78183055,0.00038595,60]
[365283305,1749576722292,-200.0,0.00038595,60]
[365283306,1749576722318,-200.0,0.00038595,60]
[365283307,1749576722344,-3724.82887074,0.00038595,60]
[365283308,1749576722371,-3724.82887074,0.00038595,60]
[365283309,1749576722397,-3724.82887074,0.00038595,60]
[365283310,1749576722424,-50636.50580936,0.00038595,120]
[365283311,1749576722450,-394167.34782967,0.00038595,120]
[365283312,1749576722477,-132599.20875645,0.00038595,120]
[365283313,1749576785862,134205.29175178,0.00038592,60]
[365283314,1749576786264,134205.29175178,0.00038592,60]
[365283315,1749576786573,134205.29175178,0.00038592,60]
[365283316,1749576790069,154.56861969,0.0001948,30]
[365283317,1749576790333,268.27248122,0.00038592,50]
[365283318,1749576792144,150.0,0.00038592,50]
[365283319,1749576795263,525.64925932,0.00038592,60]
[365283320,1749576795596,525.64925932,0.00038592,60]
[365283321,1749576795914,525.64925932,0.00038592,60]
[365283322,1749576801888,408.03096288,0.00038592,60]
[365283323,1749576802200,408.03096288,0.00038592,60]
[365283324,1749576802516,408.03096288,0.00038592,60]
[365283325,1749576807822,1881.03683309,0.00038592,60]
[365283326,1749576808167,1881.03683309,0.00038592,60]
[365283327,1749576808518,1881.03683309,0.00038592,60]
[365283328,1749576815912,1006.51472916,0.00038592,60]
[365283329,1749576816426,1006.51472916,0.00038592,60]
[365283330,1749576816772,1006.51472916,0.00038592,60]
[365283331,1749576823864,332.67706274,0.00038592,60]
[365283332,1749576824196,332.67706274,0.00038592,60]
[365283333,1749576824532,332.67706274,0.00038592,60]
[365283334,1749576831633,384.66555106,0.00038592,60]
[365283335,1749576831917,384.66555106,0.00038592,60]
[365283336,1749576832224,384.66555106,0.00038592,60]
[365283337,1749576855348,250.0,0.0002,30]
[365283339,1749576868059,150.0,0.0002,30]
[365283340,1749576869672,222.47001682,0.0002,30]
[365283341,1749576869945,268.97,0.00013699,2]
[365283342,1749576871071,150.0,0.0002,30]
[365283343,1749576872762,150.0,0.0002,30]
[365283344,1749576903224,1362.19273332,0.00024658,120]
[365283345,1749576903364,370.47731961,0.00038592,120]
[365283346,1749576903394,689.05687139,0.00024658,120]
[365283347,1749576903432,6660.04659715,0.00024658,120]
[365283348,1749576903468,577.28798205,0.00038592,120]
[365283349,1749576903500,744.35826238,0.00024658,120]
[365283350,1749576903536,172.26421785,0.00038592,120]
[365283351,1749576913561,150.0,0.0002,30]
[365283352,1749576923908,304.15,0.00019205,30]
[365283353,1749576933322,179.28693936,0.0002,30]
[365283354,1749576934207,150.0,0.0002,30]
[365283355,1749576946347,200.0,0.0002,30]
[365283356,1749576947371,500.0,0.0002,30]
[365283357,1749577027394,151.81951365,0.0002,30]
[365283358,1749577097957,150.90358967,0.00038551,50]
[365283359,1749577121670,236.35085744,0.00024658,120]
[365283360,1749577143310,157.77,0.00038551,50]
[365283361,1749577150255,500.0,0.0002,30]
[365283362,1749577152955,150.0,0.0002,30]
[365283363,1749577154941,500.0,0.0002,30]
[365283364,1749577156033,150.0,0.0002,30]
[365283365,1749577158094,153.93623935,0.0002,30]
[365283366,1749577162967,150.0,0.0002,30]
[365283367,1749577174453,150.0,0.0002,30]
[365283368,1749577176050,500.0,0.0002,30]
[365283369,1749577223786,163.63677936,0.0002,30]
[365283370,1749577224559,150.0,0.0002,30]
[365283371,1749577290487,150.0,0.00022105,120]
[365283372,1749577350537,150.0,0.00024457,120]
[365283373,1749577392155,150.0,0.0002,30]
[365283374,1749577393795,1333.0,0.00023846,120]
[365283375,1749577404425,500.0,0.0002,30]
[365283376,1749577470728,150.0,0.00020774,120]
[365283377,1749577523460,250.0,0.0002,30]
[365283378,1749577570885,150.0,0.0002,30]
[365283379,1749577590908,150.0,0.00022956,120]
[365283380,1749577603593,150.0,0.0002,30]
[365283381,1749577638932,1177.88639894,0.00038554,60]
[365283382,1749577646101,-582.70865701,0.00016164,2]
[365283383,1749577646123,-500.0,0.00016164,2]
[365283384,1749577646146,-325.92,0.00016238,2]
[365283385,1749577646167,-175.4121041,0.00016299,2]
[365283386,1749577646188,-175.4121041,0.00016338,2]
[365283387,1749577646210,-200.0,0.00016386,2]
[365283388,1749577646230,-46.13061361,0.00016399,2]
[365283389,1749577646262,-797.81376261,0.00016399,2]
[365283390,1749577648124,-6.37562378,0.00016399,2]
[365283391,1749577648146,-961.6948149,0.00016435,2]
[365283392,1749577650316,-238.3051851,0.00016435,2]
[365283393,1749577650337,-300.0,0.00016436,2]
[365283394,1749577650358,-300.0,0.00016436,2]
[365283395,1749577650388,-130.84374744,0.00016436,2]
[365283396,1749577679460,645.64,0.00014491,2]
[365283397,1749577683446,201.6667441,0.0002,30]
[365283398,1749577684429,200.65106076,0.0002,30]
[365283399,1749577686237,200.0,0.0002,30]
[365283400,1749577687982,150.0,0.0002,30]
[365283402,1749577751125,500.0,0.0002,30]
[365283403,1749577752339,150.0,0.0002,30]
[365283404,1749577754357,500.0,0.0002,30]
[365283405,1749577755304,150.0,0.0002,30]
[365283406,1749577756531,150.0,0.0002,30]
[365283408,1749577773026,150.0,0.0002,30]
[365283409,1749577782016,500.0,0.00016164,2]
[365283411,1749577812159,200.0,0.00015855,2]
[365283412,1749577812438,200.0,0.00016329,2]
[365283424,1749577832457,-1200.0,0.00016436,2]
[365283425,1749577832467,-334.37454839,0.00016437,2]
[365283426,1749577832478,-208.10606919,0.00016437,2]
[365283427,1749577832487,-500.0,0.00016437,2]
[365283428,1749577832497,-500.0,0.00016437,2]
[365283429,1749577832507,-500.0,0.00016437,2]
[365283430,1749577832525,-500.0,0.00016437,2]
[365283431,1749577832537,-405.59124596,0.00016437,2]
[365283432,1749577832547,-500.0,0.00016437,2]
[365283433,1749577832556,-228.12625637,0.00016437,2]
[365283434,1749577832566,-500.0,0.00016437,2]
[365283435,1749577832576,-327.01668039,0.00016437,2]
[365283436,1749577832586,-500.0,0.00016437,2]
[365283437,1749577832596,-550.0,0.00016437,2]
[365283438,1749577832606,-500.0,0.00016437,2]
[365283439,1749577832616,-500.0,0.00016437,2]
[365283440,1749577832626,-500.0,0.00016437,2]
[365283441,1749577832636,-500.0,0.00016437,2]
[365283442,1749577832646,-500.0,0.00016437,2]
[365283443,1749577832656,-500.0,0.00016437,2]
[365283444,1749577832666,-398.15895121,0.00016438,2]
[365283445,1749577832676,-490.0,0.00016438,2]
[365283446,1749577832685,-490.0,0.00016438,2]
[365283447,1749577832695,-500.0,0.00016438,2]
[365283448,1749577832706,-500.0,0.00016438,2]
[365283449,1749577832716,-299.99176529,0.00016438,2]
[365283450,1749577832726,-620.92,0.00016438,2]
[365283451,1749577832735,-480.0,0.00016438,2]
[365283452,1749577832746,-490.0,0.00016438,2]
[365283453,1749577832756,-450.0,0.00016438,2]
[365283454,1749577832766,-490.0,0.00016438,2]
[365283455,1749577832776,-490.0,0.00016438,2]
[365283456,1749577832786,-490.0,0.00016438,2]
[365283457,1749577832795,-460.0,0.00016438,2]
[365283459,1749577832805,-480.0,0.00016438,2]
[365283460,1749577832815,-2083.33,0.00016438,2]
[365283461,1749577832825,-490.0,0.00016438,2]
[365283462,1749577832835,-480.0,0.00016438,2]
[365283463,1749577832845,-490.0,0.00016438,2]
[365283464,1749577832856,-460.0,0.00016438,2]
[365283465,1749577832867,-437.94648319,0.00016438,2]
[365283466,1749577832885,-52.05351681,0.00016438,2]
[365283467,1749577832895,-490.0,0.00016438,2]
[365283468,1749577832905,-121.17648319,0.00016438,2]
[365283471,1749577832922,-368.82351681,0.00016438,2]
[365283473,1749577832932,-118.05629816,0.00016438,2]
[365283475,1749577832944,-371.94370184,0.00016438,2]
[365283477,1749577832954,-490.0,0.00016438,2]
[365283479,1749577832963,-490.0,0.00016438,2]
[365283481,1749577832973,-490.0,0.00016438,2]
[365283483,1749577832983,-490.0,0.00016438,2]
[365283485,1749577832992,-490.0,0.00016438,2]
[365283487,1749577833002,-490.0,0.00016438,2]
[365283489,1749577833011,-490.0,0.00016438,2]
[365283491,1749577833021,-552.2563689,0.00016438,2]
[365283493,1749577833031,-490.0,0.00016438,2]
[365283495,1749577833040,-480.0,0.00016438,2]
[365283497,1749577833050,-490.0,0.00016438,2]
[365283499,1749577833060,-490.0,0.00016438,2]
[365283502,1749577833070,-490.0,0.00016438,2]
[365283504,1749577833079,-490.0,0.00016438,2]
[365283506,1749577833088,-460.0,0.00016438,2]
[365283507,1749577833098,-952.15,0.00016438,2]
[365283508,1749577833107,-490.0,0.00016438,2]
[365283509,1749577833116,-490.0,0.00016438,2]
[365283510,1749577833126,-490.0,0.00016438,2]
[365283511,1749577833136,-490.0,0.00016438,2]
[365283512,1749577833145,-490.0,0.00016438,2]
[365283513,1749577833155,-490.0,0.00016438,2]
[365283514,1749577833165,-490.0,0.00016438,2]
[365283515,1749577833175,-166.81752342,0.00016438,2]
[365283516,1749577833184,-490.0,0.00016438,2]
[365283517,1749577833194,-490.0,0.00016438,2]
[365283518,1749577833204,-490.0,0.00016438,2]
[365283519,1749577833213,-490.0,0.00016438,2]
[365283520,1749577833223,-490.0,0.00016438,2]
[365283521,1749577833232,-490.0,0.00016438,2]
[365283522,1749577833242,-240.0,0.00016438,2]
[365283524,1749577833251,-596.31562611,0.00016438,2]
[365283526,1749577833260,-490.0,0.00016438,2]
[365283528,1749577833270,-490.0,0.00016438,2]
[365283530,1749577833280,-490.0,0.00016438,2]
[365283532,1749577833289,-490.0,0.00016438,2]
[365283534,1749577833298,-711.42,0.00016438,2]
[365283536,1749577833308,-490.0,0.00016438,2]
[365283538,1749577833318,-490.0,0.00016438,2]
[365283540,1749577833327,-490.0,0.00016438,2]
[365283542,1749577833336,-1168.38,0.00016438,2]
[365283544,1749577833346,-490.0,0.00016438,2]
[365283546,1749577833355,-490.0,0.00016438,2]
[365283548,1749577833364,-490.0,0.00016438,2]
[365283550,1749577833374,-490.0,0.00016438,2]
[365283552,1749577833383,-490.0,0.00016438,2]
[365283554,1749577833393,-490.0,0.00016438,2]
[365283556,1749577833402,-679.66,0.00016438,2]
[365283558,1749577833413,-490.0,0.00016438,2]
[365283560,1749577833422,-170.788367,0.00016438,2]
[365283562,1749577833431,-490.0,0.00016438,2]
[365283564,1749577833440,-170.788367,0.00016438,2]
[365283566,1749577833450,-170.788367,0.00016438,2]
[365283568,1749577833460,-170.788367,0.00016438,2]
[365283570,1749577833469,-490.0,0.00016438,2]
[365283572,1749577833479,-490.0,0.00016438,2]
[365283574,1749577833488,-490.0,0.00016438,2]
[365283576,1749577833497,-490.0,0.00016438,2]
[365283578,1749577833507,-490.0,0.00016438,2]
[365283580,1749577833516,-490.0,0.00016438,2]
[365283582,1749577833525,-490.0,0.00016438,2]
[365283584,1749577833537,-490.0,0.00016438,2]
[365283586,1749577833546,-490.0,0.00016438,2]
[365283588,1749577833555,-490.0,0.00016438,2]
[365283590,1749577833565,-490.0,0.00016438,2]
[365283592,1749577833574,-490.0,0.00016438,2]
[365283594,1749577833584,-490.0,0.00016438,2]
[365283596,1749577833594,-490.0,0.00016438,2]
[365283598,1749577833603,-490.0,0.00016438,2]
[365283600,1749577833614,-506.43,0.00016438,2]
[365283602,1749577833623,-490.0,0.00016438,2]
[365283604,1749577833633,-490.0,0.00016438,2]
[365283606,1749577833642,-490.0,0.00016438,2]
[365283608,1749577833652,-480.0,0.00016438,2]
[365283610,1749577833661,-154.639141,0.00016438,2]
[365283612,1749577833671,-490.0,0.00016438,2]
[365283614,1749577833680,-490.0,0.00016438,2]
[365283616,1749577833689,-11171.37,0.00016438,2]
[365283618,1749577833699,-490.0,0.00016438,2]
[365283620,1749577833709,-490.0,0.00016438,2]
[365283622,1749577833718,-490.0,0.00016438,2]
[365283623,1749577833727,-490.0,0.00016438,2]
[365283625,1749577833736,-490.0,0.00016438,2]
[365283628,1749577833746,-490.0,0.00016438,2]
[365283629,1749577833756,-939.02,0.00016438,2]
[365283631,1749577833765,-490.0,0.00016438,2]
[365283634,1749577833775,-490.0,0.00016438,2]
[365283636,1749577833784,-681.291469,0.00016438,2]
[365283638,1749577833794,-681.291469,0.00016438,2]
[365283639,1749577833803,-681.291469,0.00016438,2]
[365283641,1749577833813,-490.0,0.00016438,2]
[365283644,1749577833823,-681.291469,0.00016438,2]
[365283646,1749577833832,-490.0,0.00016438,2]
[365283648,1749577833842,-480.0,0.00016438,2]
[365283649,1749577833851,-490.0,0.00016438,2]
[365283652,1749577833863,-490.0,0.00016438,2]
[365283654,1749577833874,-490.0,0.00016438,2]
[365283656,1749577833883,-1095.65,0.00016438,2]
[365283658,1749577833892,-490.0,0.00016438,2]
[365283660,1749577833902,-490.0,0.00016438,2]
[365283662,1749577833912,-490.0,0.00016438,2]
[365283664,1749577833921,-490.0,0.00016438,2]
[365283666,1749577833931,-490.0,0.00016438,2]
[365283668,1749577833943,-490.0,0.00016438,2]
[365283670,1749577833954,-490.0,0.00016438,2]
[365283672,1749577833964,-351.02213929,0.00016438,2]
[365283674,1749577833974,-490.0,0.00016438,2]
[365283676,1749577833983,-490.0,0.00016438,2]
[365283678,1749577833992,-490.0,0.00016438,2]
[365283680,1749577834002,-490.0,0.00016438,2]
[365283682,1749577834012,-490.0,0.00016438,2]
[365283684,1749577834021,-490.0,0.00016438,2]
[365283686,1749577834030,-490.0,0.00016438,2]
[365283688,1749577834040,-490.0,0.00016438,2]
[365283690,1749577834049,-555.747873,0.00016438,2]
[365283692,1749577834058,-490.0,0.00016438,2]
[365283694,1749577834067,-555.747873,0.00016438,2]
[365283696,1749577834076,-490.0,0.00016438,2]
[365283698,1749577834086,-555.747873,0.00016438,2]
[365283700,1749577834095,-555.747873,0.00016438,2]
[365283702,1749577834104,-490.0,0.00016438,2]
[365283704,1749577834114,-490.0,0.00016438,2]
[365283706,1749577834123,-490.0,0.00016438,2]
[365283707,1749577834132,-490.0,0.00016438,2]
[365283709,1749577834141,-490.0,0.00016438,2]
[365283712,1749577834151,-490.0,0.00016438,2]
[365283713,1749577834160,-490.0,0.00016438,2]
[365283716,1749577834170,-490.0,0.00016438,2]
[365283717,1749577834180,-490.0,0.00016438,2]
[365283719,1749577834189,-490.0,0.00016438,2]
[365283721,1749577834199,-490.0,0.00016438,2]
[365283724,1749577834209,-490.0,0.00016438,2]
[365283726,1749577834219,-490.0,0.00016438,2]
[365283728,1749577834229,-490.0,0.00016438,2]
[365283730,1749577834238,-460.0,0.00016438,2]
[365283732,1749577834247,-490.0,0.00016438,2]
[365283734,1749577834256,-490.0,0.00016438,2]
[365283736,1749577834266,-490.0,0.00016438,2]
[365283738,1749577834276,-490.0,0.00016438,2]
[365283740,1749577834285,-490.0,0.00016438,2]
[365283742,1749577834295,-490.0,0.00016438,2]
[365283744,1749577834304,-490.0,0.00016438,2]
[365283746,1749577834313,-490.0,0.00016438,2]
[365283748,1749577834322,-490.0,0.00016438,2]
[365283750,1749577834332,-490.0,0.00016438,2]
[365283752,1749577834341,-660.51,0.00016438,2]
[365283754,1749577834350,-460.0,0.00016438,2]
[365283756,1749577834360,-490.0,0.00016438,2]
[365283758,1749577834369,-618.42,0.00016438,2]
[365283760,1749577834378,-490.0,0.00016438,2]
[365283762,1749577834388,-490.0,0.00016438,2]
[365283764,1749577834397,-490.0,0.00016438,2]
[365283766,1749577834407,-490.0,0.00016438,2]
[365283767,1749577834416,-490.0,0.00016438,2]
[365283770,1749577834425,-586.14,0.00016438,2]
[365283771,1749577834435,-490.0,0.00016438,2]
[365283774,1749577834445,-490.0,0.00016438,2]
[365283775,1749577834454,-490.0,0.00016438,2]
[365283777,1749577834463,-490.0,0.00016438,2]
[365283780,1749577834475,-490.0,0.00016438,2]
[365283781,1749577834484,-490.0,0.00016438,2]
[365283783,1749577834493,-490.0,0.00016438,2]
[365283785,1749577834502,-490.0,0.00016438,2]
[365283787,1749577834511,-584.90797772,0.00016438,2]
[365283789,1749577834521,-490.0,0.00016438,2]
[365283791,1749577834530,-490.0,0.00016438,2]
[365283793,1749577834539,-490.0,0.00016438,2]
[365283795,1749577834549,-490.0,0.00016438,2]
[365283797,1749577834559,-490.0,0.00016438,2]
[365283799,1749577834568,-1541.15487936,0.00016502,2]
[365283801,1749577834577,-170.2,0.00016547,2]
[365283803,1749577834586,-166.34,0.00016554,2]
[365283805,1749577834595,-481.34,0.00016602,2]
[365283807,1749577834604,-162.93,0.00016602,2]
[365283809,1749577834614,-2083.33,0.00016602,2]
[365283811,1749577834623,-536.8,0.00016602,2]
[365283813,1749577834632,-490.0,0.00016602,2]
[365283815,1749577834641,-480.0,0.00016602,2]
[365283817,1749577834650,-490.0,0.00016602,2]
[365283819,1749577834660,-490.0,0.00016602,2]
[365283821,1749577834669,-952.15,0.00016602,2]
[365283823,1749577834678,-446.55893431,0.00016602,2]
[365283825,1749577834688,-490.0,0.00016602,2]
[365283827,1749577834697,-490.0,0.00016602,2]
[365283829,1749577834707,-534.54,0.00016602,2]
[365283831,1749577834716,-490.0,0.00016602,2]
[365283833,1749577834725,-580.32,0.00016602,2]
[365283835,1749577834734,-490.0,0.00016602,2]
[365283837,1749577834743,-490.0,0.00016602,2]
[365283839,1749577834753,-711.42,0.00016602,2]
[365283841,1749577834762,-1168.38,0.00016602,2]
[365283843,1749577834771,-490.0,0.00016602,2]
[365283845,1749577834781,-490.0,0.00016602,2]
[365283847,1749577834790,-679.66,0.00016602,2]
[365283849,1749577834800,-490.0,0.00016602,2]
[365283851,1749577834809,-170.788367,0.00016602,2]
[365283853,1749577834818,-490.0,0.00016602,2]
[365283855,1749577834828,-490.0,0.00016602,2]
[365283857,1749577834837,-496.2132893,0.00016602,2]
[365283859,1749577834846,-490.0,0.00016602,2]
[365283861,1749577834856,-480.0,0.00016602,2]
[365283863,1749577834868,-480.0,0.00016602,2]
[365283865,1749577834877,-398.49949433,0.00016602,2]
[365283867,1749577834893,-91.50050567,0.00016602,2]
[365283869,1749577834902,-224.08649433,0.00016602,2]
[365283872,1749577834914,-265.91350567,0.00016602,2]
[365283874,1749577834923,-490.0,0.00016602,2]
[365283875,1749577834932,-2075.36449633,0.00016602,2]
[365283879,1749577834953,-1745.92429881,0.00016602,2]
[365284111,1749577838293,-252.33012512,0.00016437,2]
[365284112,1749577838304,-185.95352221,0.00016437,2]